bitfinex-derivatives/quotes_ETHF0:USTF0_20250926
["timestamp","ask_amount","ask_price","bid_price","bid_amount"]
[1758873243270,0.022,3922.9,3922.8,4.12593862]
[1758873243480,0.48042,3922.9,3922.8,4.12593862]
[1758873244566,0.022,3922.9,3922.8,4.12593862]
[1758873246579,1.1829,3922.9,3922.8,4.12593862]
[1758873246781,0.5083,3922.9,3922.8,4.12593862]
[1758873247087,1.1829,3922.9,3922.8,4.12593862]
[1758873247479,0.5083,3922.9,3922.8,4.12593862]
[1758873248383,1.02542883,3922.9,3922.8,4.12593862]
[1758873248682,1.02542883,3922.9,3922.8,1.6689]
[1758873248683,2.60894883,3922.9,3922.8,1.6689]
[1758873248879,2.60894883,3922.9,3922.8,43.87993862]
[1758873249593,2.60894883,3922.9,3922.8,3.86393862]
[1758873249788,2.60894883,3922.9,3922.8,43.87893862]
[1758873250275,2.60894883,3922.9,3922.8,3.86393862]
[1758873250480,2.60894883,3922.9,3922.8,43.87893862]
[1758873250786,2.60894883,3922.9,3922.8,1.6689]
[1758873250987,2.60894883,3922.9,3922.8,43.87893862]
[1758873251185,0.53912883,3922.9,3922.8,43.87893862]
[1758873253188,0.99754883,3922.9,3922.8,43.87893862]
[1758873253690,0.53912883,3922.9,3922.8,43.87893862]
[1758873254783,0.0254,3923.2,3923.0,0.2871]
[1758873254989,0.0254,3923.2,3923.1,6.26077724]
[1758873255182,0.0254,3923.2,3923.1,4.06573862]
[1758873257388,0.0254,3923.2,3923.1,43.81773862]
[1758873258793,0.0254,3923.2,3923.1,3.80373862]
[1758873258990,0.45836,3923.4,3923.1,43.81673862]
[1758873259290,0.45836,3923.4,3923.3,3.80373862]
[1758873259479,3.2078,3923.6,3923.4,0.9228]
[1758873259793,4.329,3923.6,3923.5,4.35283862]
[1758873260096,4.78733,3923.6,3923.5,4.35283862]
[1758873260786,3.6544,3923.6,3923.5,4.35283862]
[1758873260985,3.2078,3923.6,3923.5,4.35283862]
[1758873261186,4.78734,3923.6,3923.5,4.35283862]
[1758873261485,4.78734,3923.6,3923.5,1.8958]
[1758873261690,0.45835,3923.5,3923.0,0.2871]
[1758873261885,2.29745,3923.5,3923.4,1.1623]
[1758873262185,2.29745,3923.5,3923.4,1.4243]
[1758873262387,2.03005,3923.5,3923.4,1.8707]
[1758873264896,2.03005,3923.5,3923.4,4.06573862]
[1758873266696,2.54453053,3923.5,3923.4,1.8707]
[1758873266888,2.54453053,3923.5,3923.4,4.06573862]
[1758873268693,2.08618053,3923.5,3923.4,4.06573862]
[1758873268997,1.41158053,3923.5,3923.4,4.06573862]
[1758873269199,1.86993053,3923.5,3923.4,4.06573862]
[1758873269588,1.41158053,3923.5,3923.4,4.06573862]
[1758873269793,0.96108053,3923.5,3923.4,4.06573862]
[1758873269994,0.51448053,3923.5,3923.4,4.06573862]
[1758873271299,0.51448053,3923.5,3923.4,4.52409862]
[1758873271601,0.51448053,3923.5,3923.4,4.06573862]
[1758873271895,0.7,3923.7,3923.6,0.4409]
[1758873272096,0.53991055,3923.7,3923.6,4.03893862]
[1758873272402,0.53991055,3923.7,3923.6,4.49726862]
[1758873272596,0.53991055,3923.7,3923.6,4.03893862]
[1758873275392,0.99823055,3923.7,3923.6,4.03893862]
[1758873275592,0.97283055,3923.7,3923.6,4.03893862]
[1758873275794,0.51451055,3923.7,3923.6,4.03893862]
[1758873275998,0.4583,3923.9,3923.6,3.36383862]
[1758873276203,0.4583,3923.9,3923.8,3.77693862]
[1758873276403,0.97228203,3923.9,3923.8,4.03893862]
[1758873276805,2.12188203,3923.9,3923.8,4.03893862]
[1758873277396,0.95998203,3923.9,3923.8,4.03893862]
[1758873277592,2.12188203,3923.9,3923.8,4.03893862]
[1758873279407,1.41828203,3923.9,3923.8,4.03893862]
[1758873279603,0.95998203,3923.9,3923.8,4.03893862]
[1758873279803,0.9599927,3923.9,3923.8,4.03893862]
[1758873281899,0.5139927,3923.9,3923.8,4.03893862]
[1758873283699,0.0254,3924.0,3923.9,0.4583]
[1758873283901,0.0254,3924.0,3923.9,2.0402]
[1758873284101,0.0254,3924.0,3923.9,3.41266202]
[1758873284608,0.0254,3924.0,3923.9,2.95436202]
[1758873286002,0.48369,3924.0,3923.9,2.95436202]
[1758873286199,0.48369,3924.0,3923.9,5.14940064]
[1758873286505,0.48369,3924.0,3923.9,43.78093862]
[1758873287301,2.11309,3924.0,3923.9,41.3249]
[1758873287506,2.11309,3924.0,3923.9,41.5859]
[1758873287903,2.11309,3924.0,3923.9,1.5819]
[1758873288206,2.08769,3924.0,3923.9,41.5849]
[1758873288908,1.38409,3924.0,3923.9,41.5849]
[1758873289108,0.90429,3924.0,3923.9,41.5849]
[1758873289310,0.45829,3924.0,3923.9,41.5849]
[1758873289504,1.16187,3924.2,3923.9,41.5849]
[1758873289707,1.60787,3924.2,3924.1,3.77693862]
[1758873289905,1.1496,3924.2,3924.1,4.03793862]
[1758873290207,3.2078,3924.4,3924.3,0.9068]
[1758873290208,3.66604,3924.4,3924.3,0.9068]
[1758873290401,4.62571928,3924.4,3924.3,1.8429]
[1758873290601,2.12151928,3924.4,3924.3,1.8429]
[1758873290798,0.95967928,3924.4,3924.3,1.8429]
[1758873291002,0.51367928,3924.4,3924.3,1.8429]
[1758873291302,0.90423,3924.6,3924.5,1.8525]
[1758873291496,0.90423,3924.6,3924.5,4.30853862]
[1758873291497,1.41780116,3924.6,3924.5,4.30853862]
[1758873291710,2.12140116,3924.6,3924.5,4.30853862]
[1758873292009,0.0254,3924.7,3924.6,0.6751]
[1758873292206,0.0254,3924.7,3924.6,1.5819]
[1758873292396,0.4714,3924.7,3924.6,1.5819]
[1758873292601,2.11301,3924.7,3924.6,1.5819]
[1758873292802,2.08764,3924.4,3924.3,1.5819]
[1758873293003,2.08764,3924.4,3924.3,41.5839]
[1758873294704,0.0254,3924.7,3924.5,0.2706]
[1758873294910,2.08763,3924.5,3924.4,1.5819]
[1758873295208,2.08763,3924.5,3924.4,1.8429]
[1758873296009,2.08763,3924.5,3924.4,4.03793862]
[1758873298210,2.08763,3924.5,3924.4,3.77693862]
[1758873298414,2.08763,3924.5,3924.4,43.77693862]
[1758873299615,1.6294,3924.5,3924.4,43.77693862]
[1758873300312,0.0254,3924.7,3924.4,44.23517862]
[1758873300516,0.0254,3924.7,3924.6,3.70803862]
[1758873300715,0.0254,3924.7,3924.6,4.35512056]
[1758873300909,0.53884806,3924.7,3924.6,4.35512056]
[1758873301320,0.99705806,3924.7,3924.6,4.35512056]
[1758873301618,2.12155806,3924.7,3924.6,4.35512056]
[1758873301918,2.57765806,3924.7,3924.6,1.774]
[1758873302105,2.57765806,3924.7,3924.6,41.512]
[1758873304220,2.11944806,3924.7,3924.6,41.512]
[1758873304410,0.98824806,3924.7,3924.6,41.512]
[1758873304918,0.98824806,3924.7,3924.6,44.09312056]
[1758873305216,1.44645806,3924.7,3924.6,44.09312056]
[1758873305407,1.44645806,3924.7,3924.6,41.512]
[1758873305605,2.11375806,3924.7,3924.6,41.512]
[1758873307115,2.11375806,3924.7,3924.6,1.513]
[1758873307317,2.11375806,3924.7,3924.6,41.511]
[1758873308220,0.98824806,3924.7,3924.6,41.511]
[1758873308421,1.44645806,3924.7,3924.6,41.511]
[1758873308618,0.98824806,3924.7,3924.6,41.511]
[1758873308831,0.53884806,3924.7,3924.6,41.511]
[1758873309318,0.99705806,3924.7,3924.6,41.511]
[1758873309518,0.53884806,3924.7,3924.6,41.511]
[1758873310111,0.53884806,3924.7,3924.6,41.96922]
[1758873310423,0.0254,3924.7,3924.6,41.511]
[1758873311710,1.12546,3925.2,3924.6,40.8754]
[1758873311913,2.10029919,3925.1,3925.0,1.5797]
[1758873312119,2.10029919,3925.1,3925.0,2.1008]
[1758873312427,2.52559919,3925.1,3925.0,2.1008]
[1758873318230,2.06743919,3925.1,3925.0,2.1008]
[1758873318431,2.52559919,3925.1,3925.0,2.1008]
[1758873319830,0.97483919,3925.1,3925.0,2.1008]
[1758873320134,1.64213919,3925.1,3925.0,2.1008]
[1758873320436,2.10029919,3925.1,3925.0,2.1008]
[1758873321840,1.64213919,3925.1,3925.0,2.1008]
[1758873322139,2.10029919,3925.1,3925.0,2.1008]
[1758873323338,1.64213919,3925.1,3925.0,2.1008]
[1758873324047,2.10029919,3925.1,3925.0,2.1008]
[1758873324251,0.51393919,3925.1,3925.0,2.1008]
[1758873324748,0.51393919,3925.1,3925.0,2.55897]
[1758873325145,0.0254,3925.2,3925.1,0.45816]
[1758873325441,0.0254,3925.2,3925.1,4.16082056]
[1758873328043,0.0254,3925.2,3925.1,4.61898056]
[1758873328245,0.0254,3925.2,3925.1,4.16082056]
[1758873329549,0.0254,3925.2,3925.1,4.61898056]
[1758873329752,0.0254,3925.2,3925.1,4.16082056]
[1758873329949,0.0254,3925.2,3925.1,7.82678056]
[1758873330247,0.0254,3925.2,3925.1,7.36862056]
[1758873330750,0.0254,3925.2,3925.1,7.82678056]
[1758873332852,0.0254,3925.2,3925.1,9.19924258]
[1758873333053,0.0254,3925.2,3925.1,9.40438733]
[1758873333649,0.0254,3925.2,3925.1,49.39438733]
[1758873335450,0.0254,3925.2,3925.1,48.02192531]
[1758873336152,0.0254,3925.2,3925.1,49.39438733]
[1758873336351,0.0254,3925.2,3925.1,48.02192531]
[1758873336850,0.0254,3925.2,3925.1,49.39438733]
[1758873337356,0.4581,3925.6,3925.5,1.62691]
[1758873337549,4.31515,3926.0,3925.9,0.9142]
[1758873337749,0.51297833,3926.0,3925.9,4.86679056]
[1758873337945,1.0959,3926.3,3926.2,1.5666]
[1758873338251,1.55392,3926.3,3926.2,7.61652056]
[1758873339353,1.98672,3926.3,3926.2,7.61652056]
[1758873341051,1.55392,3926.3,3926.2,7.61652056]
[1758873341353,1.98665,3926.9,3926.8,0.4597]
[1758873341557,2.49877528,3926.9,3926.8,0.7207]
[1758873342061,2.49877528,3926.9,3926.8,1.8276]
[1758873343462,1.98665,3926.9,3926.8,1.8276]
[1758873344162,1.0959,3927.0,3926.9,1.5666]
[1758873344460,1.5287,3927.0,3926.9,1.5666]
[1758873344661,1.98664,3927.0,3926.9,1.5666]
[1758873346455,1.5287,3927.0,3926.9,4.14772056]
[1758873347752,1.98664,3927.0,3926.9,4.14772056]
[1758873347952,2.24534,3927.0,3926.9,0.4597]
[1758873348158,2.24534,3927.0,3926.9,40.4407]
[1758873348362,2.24534,3927.0,3926.9,41.0931]
[1758873348664,2.24534,3927.0,3926.9,39.98]
[1758873349064,1.7874,3927.0,3926.9,40.6324]
[1758873349551,2.24534,3927.0,3926.9,40.6324]
[1758873349753,1.5287,3927.0,3926.9,40.6324]
[1758873349958,1.98664,3927.0,3926.9,40.6324]
[1758873350158,1.98664,3927.0,3926.9,43.21352056]
[1758873350660,1.5287,3927.0,3926.9,43.21352056]
[1758873351768,1.98664,3927.0,3926.9,43.21352056]
[1758873353360,2.24534,3927.0,3926.9,2.84112056]
[1758873353563,0.8794,3926.4,3926.3,3.2078]
[1758873353757,0.8794,3926.4,3926.3,45.76492056]
[1758873353758,1.5287,3926.4,3926.3,45.76492056]
[1758873354269,1.5287,3926.4,3926.3,46.41732056]
[1758873354863,1.0959,3926.4,3926.3,46.41732056]
[1758873355069,0.4466,3926.4,3926.3,46.41732056]
[1758873355460,1.10729,3926.6,3926.5,0.4597]
[1758873355770,2.49865834,3926.6,3926.5,1.8266]
[1758873356663,1.98668,3926.6,3926.5,1.8266]
[1758873357171,1.98668,3926.6,3926.5,2.0812]
[1758873357375,1.98668,3926.6,3926.5,1.8212]
[1758873357561,1.98668,3926.6,3926.5,41.7972]
[1758873357758,2.49890748,3926.6,3926.5,39.976]
[1758873357968,1.59432748,3926.6,3926.3,0.4597]
[1758873358173,1.98673,3926.2,3926.1,1.1121]
[1758873358467,1.98673,3926.2,3926.1,1.3721]
[1758873358975,1.98673,3926.2,3926.1,1.8266]
[1758873359973,1.98673,3926.2,3926.1,41.5436]
[1758873360267,1.5287,3926.2,3926.1,41.5436]
[1758873360669,1.5312,3926.2,3926.1,0.4371]
[1758873360877,1.5312,3926.2,3926.1,43.67129097]
[1758873361170,1.98923,3926.2,3926.1,43.67129097]
[1758873361375,2.50184826,3926.2,3926.1,43.67129097]
[1758873362373,2.50191681,3926.2,3926.1,43.67129097]
[1758873365069,2.50191681,3926.2,3926.1,0.4371]
[1758873365267,1.34616,3926.0,3925.9,39.719]
[1758873365470,1.34616,3926.0,3924.9,1.37246202]
[1758873365471,0.4074,3925.1,3924.8,1.37246202]
[1758873365767,1.4784,3925.1,3925.0,1.5327]
[1758873365968,1.4784,3925.1,3925.0,1.803]
[1758873366174,0.45814,3925.3,3925.2,0.8758]
[1758873366369,0.45814,3925.3,3925.2,3.98369097]
[1758873366565,0.52295393,3925.3,3925.2,3.98369097]
[1758873366766,2.00135393,3925.3,3925.2,3.98369097]
[1758873366974,2.00135393,3925.3,3925.2,3.28269097]
[1758873367169,2.00135393,3925.3,3925.2,3.54269097]
[1758873367575,2.00135393,3925.3,3925.2,3.98369097]
[1758873368764,2.00135393,3925.3,3925.2,3.28269097]
[1758873369074,1.93661,3924.7,3924.6,0.4348]
[1758873369273,1.93661,3924.7,3924.6,40.4158]
[1758873369274,1.4784,3924.7,3924.6,40.4158]
[1758873369482,1.0469,3924.7,3924.6,45.45468194]
[1758873369672,3.2078,3924.8,3924.7,1.5327]
[1758873370170,3.2078,3924.8,3924.7,3.72369097]
[1758873370376,3.2078,3924.8,3924.7,1.5327]
[1758873371274,3.2078,3925.3,3924.7,0.8758]
[1758873371466,5.14434,3925.3,3925.2,2.62579097]
[1758873371666,5.66613268,3925.3,3925.2,3.54269097]
[1758873372175,0.4074,3924.6,3924.5,1.1461]
[1758873372374,0.4074,3924.6,3924.5,43.97899097]
[1758873372375,1.4784,3924.6,3924.5,43.97899097]
[1758873373477,0.4074,3924.6,3924.5,43.97899097]
[1758873374375,0.4074,3924.6,3924.5,3.99399097]
[1758873374674,0.45825,3924.4,3924.2,3.2078]
[1758873374876,0.45825,3924.4,3924.3,2.45099097]
[1758873374877,0.4074,3924.4,3924.3,2.45099097]
[1758873375176,0.4074,3924.4,3924.3,3.98469097]
[1758873375873,1.09772,3924.6,3924.3,3.98469097]
[1758873376073,0.4582,3924.8,3924.6,0.6569]
[1758873376273,3.8473,3925.0,3924.9,1.5327]
[1758873376274,4.2547,3925.0,3924.9,1.5327]
[1758873376481,4.2547,3925.0,3924.9,3.98469097]
[1758873377283,4.6862,3925.0,3924.9,3.98469097]
[1758873379578,4.6862,3925.0,3924.9,1.7937]
[1758873379877,3.6152,3925.0,3924.9,1.7937]
[1758873380082,3.2078,3925.0,3924.9,1.7937]
[1758873380281,3.6152,3925.0,3924.9,1.7937]
[1758873380579,4.2547,3925.0,3924.9,1.7937]
[1758873383177,4.2547,3925.0,3924.9,3.98469097]
[1758873383683,5.14437,3925.0,3924.9,3.98469097]
[1758873389486,5.66731396,3925.0,3924.9,3.98469097]
[1758873390186,5.20918126,3925.0,3924.9,3.98469097]
[1758873390677,5.20918126,3925.0,3924.9,1.7937]
[1758873390882,5.66735126,3925.0,3924.9,3.98469097]
[1758873391788,5.14437,3925.0,3924.9,3.98469097]
[1758873391986,5.66750586,3925.0,3924.9,3.98469097]
[1758873395579,2.45970586,3925.0,3924.9,3.98469097]
[1758873396088,2.00153586,3925.0,3924.9,3.98469097]
[1758873397089,2.45970586,3925.0,3924.9,3.98469097]
[1758873398583,2.00153586,3925.0,3924.9,3.98469097]
[1758873399190,2.45970586,3925.0,3924.9,3.98469097]
[1758873401588,2.00153586,3925.0,3924.9,3.98469097]
[1758873401897,2.45970586,3925.0,3924.9,3.98469097]
[1758873402088,2.72400586,3925.0,3924.9,3.98469097]
[1758873402292,2.45970586,3925.0,3924.9,3.98469097]
[1758873403196,2.45970586,3925.0,3924.9,3.72369097]
[1758873403393,2.72400586,3925.0,3924.9,43.71469097]
[1758873404891,0.87435,3924.4,3924.3,1.0427]
[1758873405096,2.43018586,3924.4,3924.3,2.45099097]
[1758873405290,1.97193586,3924.4,3924.3,3.49369097]
[1758873405597,0.52313586,3924.4,3924.3,6.09618194]
[1758873405794,1.56557148,3924.9,3924.8,1.4542]
[1758873405996,0.95787149,3924.9,3924.8,1.7142]
[1758873408292,1.29933,3924.5,3924.4,3.8125]
[1758873408500,1.90705,3924.3,3924.2,0.6047]
[1758873408707,2.43992149,3924.3,3924.2,1.3027]
[1758873408911,2.43992149,3924.3,3924.2,1.0427]
[1758873409208,4.63091246,3924.3,3924.2,41.0347]
[1758873409408,4.17266246,3924.3,3924.2,41.0347]
[1758873409599,4.63091246,3924.3,3924.2,41.0347]
[1758873409906,2.43992149,3924.3,3924.2,41.0347]
[1758873410297,1.98167149,3924.3,3924.2,41.0347]
[1758873410598,2.43992149,3924.3,3924.2,41.0347]
[1758873410795,2.43992149,3924.3,3924.2,1.0427]
[1758873411195,2.43992149,3924.3,3924.2,40.431]
[1758873411396,2.43992149,3924.3,3923.5,0.2703]
[1758873411397,1.06603,3923.6,3923.5,0.2703]
[1758873411600,1.06603,3923.6,3923.5,40.7013]
[1758873411601,1.98167149,3923.6,3923.5,40.7013]
[1758873411992,0.95787149,3923.6,3923.5,41.306]
[1758873412508,0.53287149,3923.6,3923.5,41.76435]
[1758873412700,0.425,3923.8,3923.7,1.4542]
[1758873413001,0.96350844,3923.8,3923.7,3.64519097]
[1758873413208,0.96350844,3923.8,3923.7,43.63919097]
[1758873413501,1.57120844,3923.8,3923.7,43.63919097]
[1758873414807,2.02951844,3923.8,3923.7,43.63919097]
[1758873416914,2.44561844,3923.8,3923.7,43.64319097]
[1758873419210,2.44561844,3923.8,3923.7,43.64419097]
[1758873419404,2.44561844,3923.8,3922.5,1.62516202]
[1758873419405,0.425,3922.6,3922.2,40.2497]
[1758873419618,0.6077,3922.3,3922.2,40.2497]
[1758873419910,0.6077,3922.3,3922.2,41.3602]
[1758873420616,0.6119,3922.5,3922.2,40.8495]
[1758873420798,0.6119,3922.5,3922.4,3.55699097]
[1758873420998,0.6119,3922.5,3922.4,3.81699097]
[1758873421199,1.07037,3922.5,3922.4,3.81699097]
[1758873421400,2.20027,3922.5,3922.4,3.30299097]
[1758873421708,1.07041,3922.1,3922.0,39.741]
[1758873421913,1.61356962,3922.1,3922.0,40.001]
[1758873422806,1.50408,3921.6,3921.5,0.852]
[1758873423013,1.50408,3921.6,3921.5,40.855]
[1758873423404,1.50408,3921.6,3921.5,0.852]
[1758873423715,1.50408,3921.6,3921.5,40.856]
[1758873424411,0.45855,3921.8,3921.5,40.856]
[1758873424611,1.11045,3921.8,3921.7,3.00241605]
[1758873424810,1.11045,3921.8,3921.7,3.69071605]
[1758873424999,1.54835,3921.8,3921.7,3.69071605]
[1758873425205,1.54835,3921.8,3921.7,4.20171605]
[1758873427004,1.54835,3921.8,3921.7,3.69071605]
[1758873427204,1.98355,3921.8,3921.7,3.69071605]
[1758873427508,1.11045,3921.8,3921.7,4.20171605]
[1758873428014,3.2078,3922.6,3922.1,0.4283]
[1758873428319,1.81251,3923.0,3922.9,1.3565]
[1758873428616,1.81251,3923.0,3922.9,3.69071605]
[1758873429411,2.24771,3923.0,3922.9,3.69071605]
[1758873430911,1.7893,3923.0,3922.9,3.69071605]
[1758873431103,1.7893,3923.0,3922.9,7.40951605]
[1758873431712,1.7893,3923.0,3922.9,6.89851605]
[1758873432318,3.2078,3923.8,3923.4,0.8455]
[1758873432625,3.2078,3923.8,3923.7,3.94171605]
[1758873432805,0.2639,3924.0,3923.8,0.511]
[1758873433117,1.3741,3924.0,3923.9,1.6165]
[1758873433413,1.25384908,3924.0,3923.9,9.8243]
[1758873433811,0.0254,3924.6,3924.5,0.6739]
[1758873434014,0.0254,3924.6,3924.5,1.9937]
[1758873434212,0.45817,3925.1,3925.0,0.6739]
[1758873434412,0.45817,3925.1,3925.0,41.7477]
[1758873434911,0.45814,3925.4,3925.0,41.1162]
[1758873435107,4.10386,3925.2,3925.1,1.477]
[1758873435509,3.6457,3925.2,3925.1,1.477]
[1758873435709,3.6457,3925.2,3925.1,4.06221605]
[1758873435710,3.2078,3925.2,3925.1,4.06221605]
[1758873435911,3.66584,3926.2,3926.1,0.8455]
[1758873436108,3.2078,3926.2,3926.1,4.32321605]
[1758873436313,3.2078,3926.7,3926.6,1.477]
[1758873436517,3.2078,3926.7,3926.6,1.737]
[1758873436812,0.8731,3926.1,3926.0,4.9415]
[1758873437018,0.8731,3926.1,3926.0,44.9525]
[1758873437419,0.4379,3926.1,3926.0,44.9525]
[1758873438315,0.45801,3926.5,3926.0,44.9525]
[1758873438316,1.54781,3926.5,3926.4,0.4172]
[1758873438621,1.98301,3926.5,3926.4,1.3097]
[1758873438821,1.525,3926.5,3926.4,1.3097]
[1758873439025,1.525,3926.5,3926.4,1.738]
[1758873439524,0.8731,3926.5,3926.4,1.738]
[1758873440320,0.92127,3926.8,3926.7,1.477]
[1758873440529,0.8985,3926.8,3926.7,1.737]
[1758873440818,0.0254,3926.8,3926.7,1.737]
[1758873450326,0.0254,3926.8,3926.7,2.19498]
[1758873456838,0.0254,3926.8,3926.7,1.737]
[1758873457030,0.0254,3926.8,3926.7,2.19498]
[1758873458234,4.12044,3927.9,3927.8,1.4983]
[1758873458433,0.022,3927.9,3927.8,1.7583]
[1758873458632,0.022,3927.9,3927.8,4.33459895]
[1758873459036,0.022,3927.9,3927.8,4.79244895]
[1758873459938,0.2639,3929.0,3928.9,1.0554]
[1758873459939,1.97301,3929.0,3928.9,1.0554]
[1758873460140,2.52025692,3929.0,3928.9,1.7583]
[1758873460336,1.84585692,3929.0,3928.9,1.7583]
[1758873461433,1.84585692,3929.0,3928.2,3.2078]
[1758873461434,1.29869,3928.3,3928.2,1.0554]
[1758873461632,2.0635449,3928.3,3928.2,0.26]
[1758873461838,4.63984385,3928.3,3928.2,1.3154]
[1758873462037,2.0635449,3928.3,3928.2,1.3154]
[1758873462634,2.5213349,3928.3,3928.2,1.3154]
[1758873462835,2.5213349,3928.3,3928.2,1.7583]
[1758873463440,1.3891449,3928.3,3928.2,1.7583]
[1758873463836,1.8469349,3928.3,3928.2,1.7583]
[1758873467742,2.5213349,3928.3,3928.2,0.8716]
[1758873467942,2.5213349,3928.3,3928.2,0.26]
[1758873468343,2.5213349,3928.3,3928.2,0.8716]
[1758873469145,2.5213349,3928.3,3928.2,1.3154]
[1758873470458,2.5213349,3928.3,3928.2,0.8716]
[1758873470648,2.5213349,3928.3,3928.2,1.3154]
[1758873470850,2.0635449,3928.3,3928.2,1.3154]
[1758873471654,1.3891449,3928.3,3928.2,1.7583]
[1758873472759,0.5482449,3928.3,3928.2,1.7583]
[1758873473254,1.29871,3928.1,3928.0,1.0554]
[1758873473555,2.0635449,3928.1,3928.0,40.5756]
[1758873473851,2.5213549,3928.1,3928.0,40.8402]
[1758873474155,1.97317,3927.6,3927.5,3.2078]
[1758873474354,1.3891449,3927.6,3927.5,5.2307]
[1758873474555,0.5482449,3927.6,3927.5,5.2307]
[1758873478448,1.0061149,3927.6,3927.5,5.2307]
[1758873479055,0.5482449,3927.6,3927.5,5.2307]
[1758873480257,0.5482449,3927.6,3927.5,5.68858]
[1758873480466,1.82439649,3928.3,3928.0,0.269]
[1758873480754,1.4913,3928.3,3928.1,0.26]
[1758873480960,1.4913,3928.3,3928.2,1.4815]
[1758873481351,1.94909,3928.3,3928.2,1.4815]
[1758873481555,1.94909,3928.3,3928.2,0.4134]
[1758873481860,2.19853,3928.0,3927.9,40.7536]
[1758873482055,2.19853,3928.0,3927.9,41.0136]
[1758873482561,1.94913,3928.0,3927.9,41.0136]
[1758873482860,0.4324,3928.0,3927.9,44.2214]
[1758873483359,0.89017,3928.5,3928.4,1.0681]
[1758873483657,2.43002,3929.5,3928.6,0.6362]
[1758873483658,1.82439649,3929.0,3928.6,0.6362]
[1758873483855,1.94902,3928.9,3928.8,1.4815]
[1758873484050,1.94902,3928.9,3928.8,1.7415]
[1758873486058,0.8726,3928.9,3928.8,1.7415]
[1758873486265,0.89012,3928.9,3928.8,1.7415]
[1758873486465,1.52332,3928.9,3928.8,1.7415]
[1758873486666,1.92922,3928.9,3928.8,1.7415]
[1758873487764,0.4324,3928.9,3928.8,3.93037959]
[1758873488064,0.0254,3929.3,3929.2,1.4839]
[1758873488261,0.0254,3929.3,3929.2,7.14057959]
[1758873488454,1.0494,3930.2,3930.1,0.848]
[1758873488653,1.0494,3930.2,3930.1,3.93277959]
[1758873488862,0.4162,3930.2,3930.1,3.93277959]
[1758873489156,0.6332,3930.5,3930.2,1.4839]
[1758873489361,0.4162,3930.5,3930.4,3.03687959]
[1758873489859,3.624,3930.7,3930.6,1.4839]
[1758873490052,3.624,3930.7,3930.6,1.7439]
[1758873490460,0.6332,3931.4,3930.6,4.9517]
[1758873490658,1.91273,3931.4,3931.3,1.4839]
[1758873490855,1.91273,3931.4,3931.3,1.7439]
[1758873491064,1.4553,3931.4,3931.3,1.7439]
[1758873492073,1.4553,3931.4,3931.3,41.4379]
[1758873492458,0.4162,3931.4,3931.3,41.4379]
[1758873493155,0.6332,3931.7,3931.3,40.802]
[1758873493358,0.6332,3931.7,3931.6,4.6917]
[1758873493359,1.0494,3931.7,3931.6,4.6917]
[1758873493558,1.4553,3931.7,3931.6,4.9517]
[1758873494162,1.4553,3931.7,3931.6,1.7439]
[1758873496767,0.45739,3931.8,3931.6,1.7439]
[1758873496964,0.87359,3931.8,3931.7,1.4839]
[1758873497165,0.0254,3931.9,3931.8,1.0779]
[1758873497466,0.45733,3932.3,3931.8,1.7439]
[1758873497667,0.45733,3932.3,3932.2,0.848]
[1758873497866,0.45733,3932.3,3932.2,1.7439]
[1758873498064,3.2078,3932.6,3932.2,1.7439]
[1758873498065,0.4162,3932.4,3932.3,1.0419]
[1758873498268,0.4162,3932.4,3932.3,1.7439]
[1758873498670,3.841,3932.6,3932.3,1.108]
[1758873498872,4.2572,3932.6,3932.5,1.4839]
[1758873499068,1.0494,3932.6,3932.5,1.7439]
[1758873499463,1.0494,3932.6,3932.5,2.004]
[1758873499464,0.4162,3932.6,3932.5,2.004]
[1758873499669,0.4162,3932.6,3932.5,1.744]
[1758873499864,0.4162,3932.6,3932.5,41.682]
[1758873500362,0.4162,3932.6,3932.5,1.744]
[1758873500570,1.0494,3932.6,3932.5,41.681]
[1758873501375,1.0494,3932.6,3932.5,41.68]
[1758873502170,0.4162,3932.6,3932.5,41.68]
[1758873502476,0.43216287,3932.6,3932.5,41.68]
[1758873502868,0.01596287,3932.6,3932.5,41.68]
[1758873503075,0.47325287,3932.6,3932.5,41.68]
[1758873503465,0.01835278,3932.6,3932.5,54.44767586]
[1758873503674,0.0254,3933.1,3933.0,2.20124]
[1758873503866,0.0254,3933.1,3933.0,5.2118]
[1758873504069,0.0254,3933.1,3933.0,10.66904]
[1758873504270,3.841,3933.9,3933.1,0.6359]
[1758873504466,4.6631,3933.9,3933.8,1.4839]
[1758873504677,4.6631,3933.9,3933.8,1.7439]
[1758873504678,1.91243,3933.9,3933.8,1.7439]
[1758873504880,1.09033,3933.9,3933.8,1.7439]
[1758873505174,3.2078,3934.8,3934.2,0.6359]
[1758873505379,0.45708,3934.4,3934.3,0.26]
[1758873505572,0.87328,3934.4,3934.3,1.108]
[1758873505774,1.91238,3934.4,3934.3,1.108]
[1758873506079,1.4553,3934.4,3934.3,1.7439]
[1758873506582,1.91237,3934.5,3934.4,1.4839]
[1758873506971,3.841,3934.8,3934.7,1.4839]
[1758873507172,0.25,3935.0,3934.9,0.442]
[1758873507173,1.0494,3935.0,3934.9,0.442]
[1758873507472,3.2332,3935.2,3935.1,1.4839]
[1758873507473,0.4416,3935.2,3935.1,1.4839]
[1758873507684,0.4416,3935.2,3935.1,1.7439]
[1758873508086,0.0254,3935.2,3935.1,1.7439]
[1758873508383,0.0254,3935.2,3935.1,9.9517]
[1758873509376,0.0254,3935.2,3935.1,9.6917]
[1758873509988,0.0254,3935.2,3935.1,49.6087]
[1758873510778,0.4115,3935.7,3935.6,1.4697]
[1758873510980,1.27729,3935.2,3935.1,0.41]
[1758873511180,1.27729,3935.2,3934.5,3.4679]
[1758873511181,0.45705,3934.6,3934.5,3.4679]
[1758873511383,1.92605,3934.6,3934.5,3.2078]
[1758873511689,1.92605,3934.6,3934.5,3.4678]
[1758873512083,0.6487,3935.3,3934.5,4.5846]
[1758873512280,1.469,3935.2,3935.1,1.4697]